fUST/lending_fUST_20250205
["ID","MTS","AMOUNT","RATE_DAILY","PERIOD"]
[351695796,1738746119527,152.74,0.000179,31]
[351695802,1738746271765,192.0,0.00015012,2]
[351695803,1738746275332,192.0,0.00015012,5]
[351695804,1738746279736,192.0,0.00015012,2]
[351695809,1738746295085,517.39010956,0.00015012,2]
[351695815,1738746421065,172.579851,0.00013699,2]
[351695816,1738746430023,163.898577,0.00013973,2]
[351695831,1738746605388,5000.0,0.00015012,2]
[351695832,1738746621680,1509.81396804,0.00015012,2]
[351695844,1738746636180,-239.09776337,0.00015309,2]
[351695845,1738746636191,-162.727,0.0001562,2]
[351695846,1738746636201,-9284.09135677,0.0001588,2]
[351695847,1738746636212,-169.20109667,0.00015899,2]
[351695848,1738746636221,-171.09206405,0.000159,2]
[351695849,1738746636235,-500.0,0.00015973,2]
[351695850,1738746636245,-470.98899189,0.00015973,2]
[351695851,1738746636254,-500.0,0.00015973,2]
[351695852,1738746636264,-219.35186006,0.00015973,2]
[351695853,1738746636274,-167.989099,0.00015973,2]
[351695854,1738746636283,-269.92461582,0.00015973,2]
[351695855,1738746636292,-539.90356291,0.00015973,2]
[351695856,1738746636302,-300.0,0.00015998,2]
[351695857,1738746636311,-618.88461011,0.00015999,2]
[351695858,1738746636320,-563.9,0.00015999,2]
[351695859,1738746636330,-2420.59,0.00015999,2]
[351695860,1738746636339,-10180.68,0.00015999,2]
[351695861,1738746636348,-500.0,0.00015999,2]
[351695862,1738746636358,-6083.56,0.00015999,2]
[351695863,1738746636370,-4090.77,0.00015999,2]
[351695864,1738746636379,-1284.1,0.00015999,2]
[351695865,1738746636388,-500.0,0.00015999,2]
[351695866,1738746636398,-14618.36,0.00015999,2]
[351695867,1738746636407,-14618.36,0.00015999,2]
[351695868,1738746636416,-562.57,0.00015999,2]
[351695869,1738746636425,-4469.66963919,0.00015999,2]
[351695870,1738746636509,-10148.69036081,0.00015999,2]
[351695871,1738746636518,-14618.36,0.00015999,2]
[351695872,1738746636527,-14618.36,0.00015999,2]
[351695873,1738746636537,-14618.36,0.00015999,2]
[351695874,1738746636546,-14618.36,0.00015999,2]
[351695875,1738746636555,-4054.22150812,0.00015999,2]
[351695876,1738746636567,-10564.13849188,0.00015999,2]
[351695877,1738746636577,-14618.36,0.00015999,2]
[351695878,1738746636587,-14618.36,0.00015999,2]
[351695879,1738746636599,-14618.36,0.00015999,2]
[351695880,1738746636608,-14618.36,0.00015999,2]
[351695881,1738746636619,-500.0,0.00015999,2]
[351695882,1738746636628,-1233.03,0.00015999,2]
[351695883,1738746636639,-500.0,0.00015999,2]
[351695884,1738746636650,-14792.52,0.00015999,2]
[351695885,1738746636659,-1389.26,0.00015999,2]
[351695886,1738746636669,-150.12608629,0.00015999,2]
[351695887,1738746636678,-672.61,0.00015999,2]
[351695888,1738746636687,-515.63425486,0.00015999,2]
[351695889,1738746636696,-500.0,0.00015999,2]
[351695890,1738746636705,-500.0,0.00015999,2]
[351695891,1738746636714,-350.91025747,0.00015999,2]
[351695892,1738746636723,-161.58675782,0.00015999,2]
[351695893,1738746636734,-263.0901571,0.00015999,2]
[351695894,1738746636743,-500.0,0.00015999,2]
[351695895,1738746636754,-500.0,0.00015999,2]
[351695896,1738746636766,-629.34241675,0.00015999,2]
[351695897,1738746636775,-153.0,0.00016,2]
[351695898,1738746636784,-153.0,0.00016,2]
[351695899,1738746636793,-153.0,0.00016,2]
[351695900,1738746636802,-172.0,0.00016,2]
[351695901,1738746636811,-172.0,0.00016,2]
[351695902,1738746636820,-172.0,0.00016,2]
[351695903,1738746636829,-172.0,0.00016,2]
[351695904,1738746636839,-172.0,0.00016,2]
[351695905,1738746636848,-172.0,0.00016,2]
[351695906,1738746636857,-172.0,0.00016,2]
[351695907,1738746636866,-172.0,0.00016,2]
[351695908,1738746636875,-172.0,0.00016,2]
[351695909,1738746636884,-172.0,0.00016,2]
[351695910,1738746636893,-172.0,0.00016,2]
[351695911,1738746636902,-153.0,0.00016,2]
[351695912,1738746636911,-153.0,0.00016,2]
[351695913,1738746636920,-153.0,0.00016,2]
[351695914,1738746636929,-153.0,0.00016,2]
[351695915,1738746636938,-153.0,0.00016,2]
[351695916,1738746636948,-153.0,0.00016,2]
[351695917,1738746636960,-153.0,0.00016,2]
[351695918,1738746636969,-172.0,0.00016,2]
[351695919,1738746636978,-172.0,0.00016,2]
[351695920,1738746636987,-172.0,0.00016,2]
[351695921,1738746636997,-172.0,0.00016,2]
[351695922,1738746637006,-172.0,0.00016,2]
[351695923,1738746637017,-172.0,0.00016,2]
[351695924,1738746637027,-172.0,0.00016,2]
[351695925,1738746637036,-172.0,0.00016,2]
[351695926,1738746637045,-172.0,0.00016,2]
[351695927,1738746637055,-172.0,0.00016,2]
[351695928,1738746637064,-172.0,0.00016,2]
[351695929,1738746637074,-172.0,0.00016,2]
[351695930,1738746637085,-172.0,0.00016,2]
[351695931,1738746637095,-172.0,0.00016,2]
[351695932,1738746637104,-153.0,0.00016,2]
[351695933,1738746637113,-153.0,0.00016,2]
[351695934,1738746637123,-153.0,0.00016,2]
[351695935,1738746637132,-153.0,0.00016,2]
[351695936,1738746637141,-153.0,0.00016,2]
[351695937,1738746637150,-153.0,0.00016,2]
[351695938,1738746637160,-500.0,0.00016,2]
[351695939,1738746637169,-500.0,0.00016,2]
[351695940,1738746637179,-500.0,0.00016,2]
[351695941,1738746637188,-678.99,0.00016,2]
[351695942,1738746637200,-1373.74,0.00016,2]
[351695943,1738746637211,-500.0,0.00016,2]
[351695944,1738746637221,-500.0,0.00016,2]
[351695945,1738746637231,-500.0,0.00016,2]
[351695946,1738746637241,-500.0,0.00016,2]
[351695947,1738746637252,-500.0,0.00016,2]
[351695948,1738746637261,-375.06284739,0.00016,2]
[351695949,1738746637271,-500.0,0.00016,2]
[351695950,1738746637280,-500.0,0.00016,2]
[351695951,1738746637292,-500.0,0.00016,2]
[351695952,1738746637301,-500.0,0.00016,2]
[351695953,1738746637312,-725.69,0.00016,2]
[351695954,1738746637324,-3121.73,0.00016,2]
[351695955,1738746637333,-500.0,0.00016,2]
[351695956,1738746637343,-500.0,0.00016,2]
[351695957,1738746637353,-500.35,0.00016,2]
[351695958,1738746637363,-500.0,0.00016,2]
[351695959,1738746637373,-500.0,0.00016,2]
[351695960,1738746637384,-1514.84,0.00016,2]
[351695961,1738746637394,-500.0,0.00016,2]
[351695962,1738746637404,-500.0,0.00016,2]
[351695963,1738746637414,-500.0,0.00016,2]
[351695964,1738746637424,-500.0,0.00016,2]
[351695965,1738746637434,-500.0,0.00016,2]
[351695966,1738746637444,-638.59,0.00016,2]
[351695967,1738746637454,-500.0,0.00016,2]
[351695968,1738746637463,-500.0,0.00016,2]
[351695969,1738746637473,-500.0,0.00016,2]
[351695970,1738746637483,-500.0,0.00016,2]
[351695971,1738746637492,-500.0,0.00016,2]
[351695972,1738746637502,-500.85826772,0.00016,2]
[351695973,1738746637511,-2205.68,0.00016,2]
[351695974,1738746637521,-500.0,0.00016,2]
[351695975,1738746637530,-500.45,0.00016,2]
[351695976,1738746637540,-2011.56,0.00016,2]
[351695977,1738746637550,-577.46264129,0.00016,2]
[351695978,1738746637559,-634.63,0.00016,2]
[351695979,1738746637569,-500.0,0.00016,2]
[351695980,1738746637578,-500.0,0.00016,2]
[351695981,1738746637588,-500.0,0.00016,2]
[351695982,1738746637598,-500.0,0.00016,2]
[351695983,1738746637608,-2106.51,0.00016,2]
[351695984,1738746637619,-1042.64,0.00016,2]
[351695985,1738746637629,-527.51,0.00016,2]
[351695986,1738746637638,-500.0,0.00016,2]
[351695987,1738746637650,-500.0,0.00016,2]
[351695988,1738746637659,-500.0,0.00016,2]
[351695989,1738746637669,-500.0,0.00016,2]
[351695990,1738746637679,-563.88887624,0.00016,2]
[351695991,1738746637688,-589.46712422,0.00016,2]
[351695992,1738746637698,-500.0,0.00016,2]
[351695993,1738746637707,-500.0,0.00016,2]
[351695994,1738746637716,-500.0,0.00016,2]
[351695995,1738746637726,-500.0,0.00016,2]
[351695996,1738746637736,-500.0,0.00016,2]
[351695997,1738746637746,-505.18342993,0.00016,2]
[351695998,1738746637759,-1869.96,0.00016,2]
[351695999,1738746637768,-500.0,0.00016,2]
[351696000,1738746637778,-624.99,0.00016,2]
[351696001,1738746637787,-500.0,0.00016,2]
[351696002,1738746637798,-500.0,0.00016,2]
[351696003,1738746637808,-500.0,0.00016,2]
[351696004,1738746637817,-500.0,0.00016,2]
[351696005,1738746637826,-500.0,0.00016,2]
[351696006,1738746637835,-579.45,0.00016,2]
[351696007,1738746637845,-604.64,0.00016,2]
[351696008,1738746637854,-500.0,0.00016,2]
[351696009,1738746637864,-500.0,0.00016,2]
[351696010,1738746637872,-500.0,0.00016,2]
[351696011,1738746637882,-2260.4,0.00016,2]
[351696012,1738746637893,-815.14,0.00016,2]
[351696013,1738746637903,-500.0,0.00016,2]
[351696014,1738746637912,-875.0,0.00016,6]
[351696015,1738746637922,-500.0,0.00016,2]
[351696016,1738746637932,-500.0,0.00016,2]
[351696017,1738746637942,-1281.72,0.00016,2]
[351696018,1738746637951,-500.0,0.00016,2]
[351696019,1738746637961,-500.0,0.00016,2]
[351696020,1738746637971,-1489.22,0.00016,2]
[351696021,1738746637982,-500.0,0.00016,2]
[351696022,1738746637991,-572.16,0.00016,2]
[351696023,1738746638001,-500.0,0.00016,2]
[351696024,1738746638010,-500.0,0.00016,2]
[351696025,1738746638020,-2449.38,0.00016,2]
[351696026,1738746638030,-3313.88,0.00016,2]
[351696027,1738746638039,-540.06751771,0.00016,2]
[351696028,1738746638049,-500.0,0.00016,2]
[351696030,1738746638058,-932.61,0.00016,2]
[351696031,1738746638068,-500.0,0.00016,2]
[351696032,1738746638077,-889.89,0.00016,2]
[351696033,1738746638086,-500.0,0.00016,2]
[351696034,1738746638096,-500.0,0.00016,2]
[351696035,1738746638105,-431.36977551,0.00016,2]
[351696036,1738746638115,-1116.54,0.00016,2]
[351696037,1738746638124,-500.0,0.00016,2]
[351696038,1738746638134,-500.0,0.00016,2]
[351696039,1738746638143,-355.98607801,0.00016,2]
[351696040,1738746638153,-501.14917954,0.00016,2]
[351696041,1738746638163,-500.0,0.00016,2]
[351696043,1738746638172,-439.56554411,0.00016,2]
[351696044,1738746638182,-573.67313264,0.00016,2]
[351696045,1738746638191,-500.0,0.00016,2]
[351696046,1738746638201,-500.0,0.00016,2]
[351696047,1738746638210,-500.0,0.00016,2]
[351696048,1738746638219,-500.0,0.00016,2]
[351696049,1738746638231,-503.83693554,0.00016,2]
[351696050,1738746638240,-500.0,0.00016,2]
[351696051,1738746638250,-500.0,0.00016,2]
[351696052,1738746638259,-502.30455521,0.00016,2]
[351696054,1738746638268,-500.0,0.00016,2]
[351696056,1738746638278,-500.0,0.00016,2]
[351696058,1738746638288,-500.0,0.00016,2]
[351696060,1738746638297,-500.0,0.00016,2]
[351696062,1738746638306,-500.0,0.00016,2]
[351696064,1738746638316,-500.0,0.00016,2]
[351696066,1738746638325,-500.0,0.00016,2]
[351696068,1738746638335,-1077.02,0.00016,2]
[351696070,1738746638345,-646.09878499,0.00016,2]
[351696072,1738746638354,-500.0,0.00016,2]
[351696074,1738746638363,-500.0,0.00016,2]
[351696076,1738746638372,-500.0,0.00016,2]
[351696078,1738746638382,-1785.96,0.00016,2]
[351696080,1738746638391,-500.0,0.00016,2]
[351696082,1738746638400,-500.0,0.00016,2]
[351696084,1738746638409,-611.01460895,0.00016,2]
[351696086,1738746638419,-500.7128787,0.00016,2]
[351696088,1738746638428,-500.0,0.00016,2]
[351696090,1738746638437,-766.18,0.00016,2]
[351696092,1738746638446,-500.0,0.00016,2]
[351696094,1738746638455,-500.0,0.00016,2]
[351696096,1738746638465,-500.0,0.00016,2]
[351696098,1738746638474,-894.11,0.00016,2]
[351696100,1738746638484,-526.0,0.00016,2]
[351696102,1738746638493,-500.58423491,0.00016,2]
[351696104,1738746638502,-263.47813124,0.00016,2]
[351696106,1738746638511,-500.0,0.00016,2]
[351696131,1738746638725,-531.36048487,0.00016,2]
[351696132,1738746638737,-1280.98,0.00016,2]
[351696133,1738746638746,-500.0,0.00016,2]
[351696134,1738746638756,-500.0,0.00016,2]
[351696135,1738746638768,-500.0,0.00016,2]
[351696136,1738746638778,-1428.99,0.00016,2]
[351696137,1738746638787,-500.0,0.00016,2]
[351696138,1738746638796,-500.0,0.00016,2]
[351696139,1738746638807,-505.7970748,0.00016,2]
[351696140,1738746638816,-500.0,0.00016,2]
[351696141,1738746638828,-500.0,0.00016,2]
[351696142,1738746638840,-500.0,0.00016,2]
[351696143,1738746638849,-500.0,0.00016,2]
[351696144,1738746638859,-500.0,0.00016,2]
[351696145,1738746638868,-528.13,0.00016,2]
[351696146,1738746638877,-500.0,0.00016,2]
[351696147,1738746638887,-768.95,0.00016,2]
[351696149,1738746638897,-500.0,0.00016,2]
[351696150,1738746638907,-975.89,0.00016,2]
[351696151,1738746638916,-500.0,0.00016,2]
[351696152,1738746638926,-500.0,0.00016,2]
[351696153,1738746638937,-500.0,0.00016,2]
[351696154,1738746638950,-500.0,0.00016,2]
[351696155,1738746638960,-4191.58,0.00016,2]
[351696156,1738746638971,-500.0,0.00016,2]
[351696157,1738746638980,-500.0,0.00016,2]
[351696158,1738746638990,-500.0,0.00016,2]
[351696159,1738746638999,-500.0,0.00016,2]
[351696160,1738746639009,-500.0,0.00016,2]
[351696161,1738746639018,-663.02,0.00016,2]
[351696162,1738746639027,-500.0,0.00016,2]
[351696163,1738746639037,-892.96,0.00016,2]
[351696164,1738746639047,-500.0,0.00016,2]
[351696165,1738746639057,-500.0,0.00016,2]
[351696166,1738746639066,-500.0,0.00016,2]
[351696167,1738746639077,-933.42,0.00016,2]
[351696168,1738746639087,-1123.94,0.00016,2]
[351696169,1738746639097,-500.0,0.00016,2]
[351696170,1738746639107,-151.0,0.00016,2]
[351696171,1738746639116,-507.16809774,0.00016,2]
[351696172,1738746639126,-500.0,0.00016,2]
[351696173,1738746639136,-500.0,0.00016,2]
[351696174,1738746639145,-500.0,0.00016,2]
[351696175,1738746639154,-313.24500209,0.00016,2]
[351696176,1738746639164,-500.56289324,0.00016,2]
[351696177,1738746639173,-500.0,0.00016,2]
[351696178,1738746639182,-500.0,0.00016,2]
[351696179,1738746639192,-500.0,0.00016,2]
[351696180,1738746639201,-500.0,0.00016,2]
[351696181,1738746639210,-35130.63,0.00016,2]
[351696182,1738746639219,-718.22,0.00016,2]
[351696183,1738746639228,-500.0,0.00016,2]
[351696184,1738746639238,-500.0,0.00016,2]
[351696185,1738746639248,-500.0,0.00016,2]
[351696186,1738746639257,-500.0,0.00016,2]
[351696187,1738746639267,-500.0,0.00016,2]
[351696188,1738746639276,-500.0,0.00016,2]
[351696189,1738746639285,-500.0,0.00016,2]
[351696190,1738746639294,-500.0,0.00016,2]
[351696191,1738746639304,-3870.41925146,0.00016,2]
[351696192,1738746639877,-4400.15074854,0.00016,2]
[351696193,1738746639887,-6074.26,0.00016,2]
[351696194,1738746639896,-500.0,0.00016,2]
[351696195,1738746639906,-500.0,0.00016,2]
[351696196,1738746639915,-505.59063429,0.00016,2]
[351696197,1738746639924,-500.0,0.00016,2]
[351696198,1738746639934,-500.0,0.00016,2]
[351696199,1738746639943,-1775.97,0.00016,2]
[351696200,1738746639952,-500.0,0.00016,2]
[351696201,1738746639962,-500.0,0.00016,2]
[351696202,1738746639971,-500.0,0.00016,2]
[351696203,1738746639982,-686.23,0.00016,2]
[351696204,1738746639991,-813.33,0.00016,2]
[351696205,1738746640000,-48.42317462,0.00016,2]
[351696206,1738746640012,-451.57682538,0.00016,2]
[351696207,1738746640021,-500.0,0.00016,2]
[351696208,1738746640030,-500.0,0.00016,2]
[351696209,1738746640040,-530.69032365,0.00016,2]
[351696210,1738746640049,-3041.68,0.00016,2]
[351696211,1738746640058,-500.0,0.00016,2]
[351696212,1738746640067,-3595.61,0.00016,2]
[351696213,1738746640077,-500.0,0.00016,2]
[351696214,1738746640086,-500.0,0.00016,2]
[351696215,1738746640096,-500.0,0.00016,2]
[351696216,1738746640105,-500.0,0.00016,2]
[351696217,1738746640116,-1588.36,0.00016,2]
[351696218,1738746640125,-2069.61,0.00016,2]
[351696219,1738746640135,-500.0,0.00016,2]
[351696220,1738746640144,-500.0,0.00016,2]
[351696221,1738746640153,-500.0,0.00016,2]
[351696222,1738746640163,-526.76,0.00016,2]
[351696223,1738746640172,-500.0,0.00016,2]
[351696224,1738746640181,-500.0,0.00016,2]
[351696225,1738746640191,-500.0,0.00016,2]
[351696226,1738746640200,-500.0,0.00016,2]
[351696227,1738746640211,-841.21,0.00016,2]
[351696228,1738746640221,-500.0,0.00016,2]
[351696229,1738746640231,-500.0,0.00016,2]
[351696230,1738746640242,-556.17666628,0.00016,2]
[351696231,1738746640252,-9919.19,0.00016,2]
[351696232,1738746640263,-712.55,0.00016,2]
[351696233,1738746640272,-892.17,0.00016,2]
[351696234,1738746640283,-505.84833853,0.00016,2]
[351696235,1738746640294,-633.66,0.00016,2]
[351696236,1738746640304,-500.90492954,0.00016,2]
[351696237,1738746640314,-500.0,0.00016,2]
[351696238,1738746640325,-500.0,0.00016,2]
[351696239,1738746640336,-24692.74649064,0.00016,2]
[351696240,1738746640349,-13941.96350936,0.00016,2]
[351696241,1738746640361,-500.0,0.00016,2]
[351696242,1738746640371,-500.0,0.00016,2]
[351696243,1738746640382,-500.0,0.00016,2]
[351696244,1738746640393,-500.0,0.00016,2]
[351696245,1738746640403,-500.0,0.00016,2]
[351696246,1738746640414,-500.0,0.00016,2]
[351696247,1738746640425,-1879.69,0.00016,2]
[351696248,1738746640436,-620.92266455,0.00016,2]
[351696249,1738746640446,-500.0,0.00016,2]
[351696250,1738746640457,-500.0,0.00016,2]
[351696251,1738746640476,-500.0,0.00016,2]
[351696252,1738746640488,-500.0,0.00016,2]
[351696253,1738746640498,-689.94,0.00016,2]
[351696254,1738746640510,-405.35468063,0.00016,2]
[351696255,1738746640530,-500.0,0.00016,2]
[351696256,1738746640540,-500.0,0.00016,2]
[351696257,1738746640550,-500.0,0.00016,2]
[351696258,1738746640561,-500.0,0.00016,2]
[351696259,1738746640576,-1281.50872983,0.00016,2]
[351696263,1738746640882,-1371.70004974,0.00016,2]
[351696264,1738746640895,-635.59122043,0.00016,2]
[351696265,1738746640905,-2973.69,0.00016,2]
[351696266,1738746640915,-500.0,0.00016,2]
[351696267,1738746640925,-500.0,0.00016,2]
[351696268,1738746640935,-500.0,0.00016,2]
[351696269,1738746640945,-500.0,0.00016,2]
[351696270,1738746640955,-1132.22,0.00016,2]
[351696271,1738746640965,-1527.7,0.00016,2]
[351696272,1738746640975,-648.83722788,0.00016,2]
[351696273,1738746640986,-500.0,0.00016,2]
[351696274,1738746640996,-500.0,0.00016,2]
[351696275,1738746641005,-536.28,0.00016,2]
[351696276,1738746641015,-78404.98447979,0.00016,2]
[351696291,1738746643626,-1444.85155571,0.00015999,2]
[351696305,1738746646656,-639.31307425,0.00015999,2]
[351696309,1738746730323,152.75,0.000179,31]
[351696310,1738746730448,152.75,0.000179,31]
[351696311,1738746730508,152.75,0.000179,31]
[351696312,1738746730581,152.75,0.000179,31]
[351696313,1738746730630,152.75,0.000179,31]
[351696314,1738746730692,152.75,0.000179,31]
[351696315,1738746730752,152.75,0.000179,31]
[351696316,1738746730811,152.75,0.000179,31]
[351696317,1738746731055,152.75,0.000179,31]
[351696318,1738746731137,152.75,0.000179,31]
[351696319,1738746731183,152.75,0.000179,31]
[351696320,1738746731227,152.75,0.000179,31]
[351696321,1738746731271,152.75,0.000179,31]
[351696322,1738746731311,152.75,0.000179,31]
[351696325,1738746859773,9911.658567,0.00014999,2]
[351696333,1738747136823,161.694752,0.00014998,2]
[351696334,1738747265362,364.6452634,0.00014999,2]
[351696335,1738747288202,175.703648,0.00013973,2]
[351696340,1738747330274,172.579851,0.00013699,2]
[351696341,1738747339702,152.76,0.000179,31]
[351696342,1738747339750,152.76,0.000179,31]
[351696343,1738747339860,152.76,0.000179,31]
[351696344,1738747339922,152.76,0.000179,31]
[351696345,1738747339999,152.76,0.000179,31]
[351696346,1738747340059,152.76,0.000179,31]
[351696347,1738747340107,152.76,0.000179,31]
[351696348,1738747340173,152.76,0.000179,31]
[351696349,1738747340230,152.76,0.000179,31]
[351696350,1738747340492,152.76,0.000179,31]
[351696351,1738747340531,152.76,0.000179,31]
[351696352,1738747340575,152.76,0.000179,31]
[351696353,1738747340612,152.76,0.000179,31]
[351696354,1738747340649,152.76,0.000179,31]
[351696357,1738747495711,3350.88,0.000177,30]
[351696358,1738747526935,5709.24,0.00018,30]
[351696367,1738747698287,4618.32597611,0.000125,2]
[351696409,1738747831799,-399.85231682,0.00015209,2]
[351696410,1738747831809,-169.20109663,0.00015894,2]
[351696411,1738747831818,-300.0,0.00015972,2]
[351696412,1738747831828,-500.84240601,0.00015973,2]
[351696413,1738747831837,-460.57542094,0.00015973,2]
[351696414,1738747831855,-39.42457906,0.00015973,2]
[351696415,1738747831865,-500.0,0.00015973,2]
[351696416,1738747831874,-500.0,0.00015973,2]
[351696417,1738747831883,-500.0,0.00015973,2]
[351696418,1738747831893,-500.0,0.00015973,2]
[351696419,1738747831903,-501.73417149,0.00015973,2]
[351696420,1738747831913,-614.4900496,0.00015973,2]
[351696421,1738747831923,-60.87261633,0.00015973,2]
[351696422,1738747831940,-439.12738367,0.00015973,2]
[351696423,1738747831949,-500.0,0.00015973,2]
[351696424,1738747831959,-500.0,0.00015973,2]
[351696425,1738747831968,-158.98330591,0.00015973,2]
[351696426,1738747831978,-505.43864197,0.00015973,2]
[351696427,1738747831988,-500.0,0.00015973,2]
[351696428,1738747831998,-500.0,0.00015973,2]
[351696429,1738747832007,-500.0,0.00015973,2]
[351696431,1738747832017,-500.0,0.00015973,2]
[351696433,1738747832028,-500.0,0.00015973,2]
[351696435,1738747832038,-319.49314725,0.0001599,2]
[351696437,1738747832049,-3833.06648259,0.0001599,2]
[351696569,1738747842733,-1299.95000005,0.0001599,2]
[351696570,1738747842843,-1651.06358647,0.0001599,2]
[351696577,1738747846029,-500.0,0.00015989,2]
[351696578,1738747846038,-7669.42748335,0.0001599,2]
[351696579,1738747846048,-2319.73,0.00015994,2]
[351696580,1738747846058,-540.41,0.00015994,2]
[351696581,1738747846068,-500.0,0.00015994,2]
[351696582,1738747846077,-500.0,0.00015994,2]
[351696583,1738747846087,-9809.65,0.00015994,2]
[351696584,1738747846100,-5940.38,0.00015994,2]
[351696585,1738747846109,-3920.32,0.00015994,2]
[351696586,1738747846119,-1230.59,0.00015994,2]
[351696588,1738747846128,-500.0,0.00015994,2]
[351696590,1738747846139,-7309.18,0.00015994,2]
[351696592,1738747846148,-7309.18,0.00015994,2]
[351696593,1738747846158,-1937.09,0.00015994,2]
[351696594,1738747846168,-1181.65,0.00015994,2]
[351696595,1738747846178,-539.13,0.00015994,2]
[351696596,1738747846187,-500.0,0.00015994,2]
[351696597,1738747846197,-1331.38,0.00015994,2]
[351696598,1738747846207,-500.0,0.00015994,2]
[351696599,1738747846217,-256.1586808,0.00015994,2]
[351696600,1738747947901,152.78,0.000179,31]
[351696601,1738747947990,152.78,0.000179,31]
[351696602,1738747948089,152.78,0.000179,31]
[351696603,1738747948130,152.78,0.000179,31]
[351696604,1738747948174,152.78,0.000179,31]
[351696605,1738747948216,152.78,0.000179,31]
[351696606,1738747948270,152.78,0.000179,31]
[351696608,1738748024930,161.694753,0.00014991,2]
[351696609,1738748190018,186.918466,0.00013973,2]
[351696610,1738748273208,172.579851,0.00013699,2]
[351696611,1738748555004,152.8,0.000179,31]
[351696612,1738748555078,152.8,0.000179,31]
[351696613,1738748555128,152.8,0.000179,31]
[351696614,1738748555189,152.8,0.000179,31]
[351696615,1738748555241,152.8,0.000179,31]
[351696616,1738748555300,152.8,0.000179,31]
[351696617,1738748555366,152.8,0.000179,31]
[351696640,1738749032088,-463.40560161,0.00015557,2]
[351696641,1738749032100,-313.39385967,0.00015557,2]
[351696642,1738749032109,-189.549,0.00015674,2]
[351696643,1738749032118,-195.196,0.00015674,2]
[351696644,1738749032128,-368.65054721,0.00015789,2]
[351696645,1738749032137,-169.20109663,0.00015886,2]
[351696646,1738749032146,-190.52253935,0.00015966,2]
[351696658,1738749037888,-300.0,0.00015972,2]
[351696659,1738749037898,-502.03618803,0.00015973,2]
[351696660,1738749037907,-500.0,0.00015973,2]
[351696661,1738749037917,-500.0,0.00015973,2]
[351696662,1738749037931,-500.0,0.00015973,2]
[351696663,1738749037941,-162.72685577,0.00015973,2]